{"text_format":"1","workbook":"xlsx","n_sheets":1,"sheets":["Plan1"],"not_rendered":{"charts":0,"images":1,"macros":1,"external_links":0,"defined_names":1,"comments":0,"pivot_tables":0},"unopened":[],"bounds":{"document_bytes":16777216,"sheet_cells":100000,"rows_first":2000,"rows_last":500,"rows_between":2000,"halvings":0,"cell_chars":16384,"cell_head_chars":4096},"cells_cut":0,"cells_raw":0,"read":"whole","date_system":"1900"}

{"sheet":"Plan1","index":0,"n_rows":119,"n_cols":15,"rows_kept":119,"cut":false,"hidden":false,"merged":[[0,0,4,14],[5,0,6,14],[14,0,14,2],[59,1,62,1],[70,0,70,2],[39,0,39,2],[8,0,13,1],[17,0,38,0],[40,0,40,14],[43,1,49,1],[50,1,53,1],[54,1,57,1],[42,0,69,0],[15,0,15,14],[19,1,24,1],[25,1,27,1],[28,1,31,1],[32,1,35,1],[36,1,38,1],[71,0,71,16383],[67,1,69,1],[63,1,66,1],[74,1,75,1],[76,1,78,1],[112,0,112,14],[117,0,117,14],[118,0,118,2],[73,0,88,0],[113,0,116,1],[92,0,106,1],[107,0,107,1],[108,0,108,14],[110,0,111,1],[89,0,89,2],[79,1,84,1],[85,1,87,1]]}
[]
[]
[]
[]
[]
["CONTROLE FINANCEIRO PESSOAL"]
[]
["MESES",null,null,"Janeiro","Fevereiro","Março","Abril","Maio","Junho","Julho","Agosto","Setembro","Outubro","Novembro","Dezembro"]
["RECEITAS",null,"Itens","Valor","Valor","Valor","Valor","Valor","Valor","Valor","Valor","Valor","Valor","Valor","Valor"]
[null,null,"Salário"]
[null,null,"Aluguel"]
[null,null,"Pensão"]
[null,null,"Férias "]
[null,null,"Outras "]
["Total Receitas ",null,null,{"$f":"SUM(D10:D14)","v":0},0,0,0,0,0,0,0,0,0,0,0]
[]
["MESES",null,null,"Janeiro","Fevereiro","Março","Abril","Maio","Junho","Julho","Agosto","Setembro","Outubro","Novembro","Dezembro"]
["DESPESAS\nVALORES\nFIXOS",null,"Itens","Valor","Valor","Valor","Valor","Valor","Valor","Valor","Valor","Valor","Valor","Valor","Valor"]
[null,"Investimento","Aplicações Financeiras"]
[null,"Habitação","Aluguel"]
[null,null,"Condominio"]
[null,null,"Prestação imóvel"]
[null,null,"Seguro Imóvel"]
[null,null,"Diarista"]
[null,null,"Mensalista"]
[null,"Transporte","Prestação carro"]
[null,null,"Seguro Carro"]
[null,null,"Estacionamento"]
[null,"Saúde","Plano de Saúde"]
[null,null,"Plano Odontológico"]
[null,null,"Seguro de Vida"]
[null,null,"Atend. Multiprofissional"]
[null,"Educação","Colégio"]
[null,null,"Faculdade"]
[null,null,"Especialização"]
[null,null,"Cursos"]
[null,"Impostos","IPTU"]
[null,null,"IPVA"]
[null,null,"IRRF"]
["Total Despesas Fixas",null,null,{"$f":"SUM(D19:D39)","v":0},0,0,0,0,0,0,0,0,0,0,0]
[]
["MESES",null,null,"Janeiro","Fevereiro","Março","Abril","Maio","Junho","Julho","Agosto","Setembro","Outubro","Novembro","Dezembro"]
["DESPESAS\nVALORES\nVARIÁVEIS","Categoria","Itens","Valor","Valor","Valor","Valor","Valor","Valor","Valor","Valor","Valor","Valor","Valor","Valor"]
[null,"Habitação","Luz"]
[null,null,"Água"]
[null,null,"Telefone"]
[null,null,"Telefone Celular"]
[null,null,"Gás"]
[null,null,"Serviço TV"]
[null,null,"Serviço Internet"]
[null,"Transporte","Metrô"]
[null,null,"Combustível"]
[null,null,"Ônibus"]
[null,null,"Táxi"]
[null,"Alimentação","Supermercado"]
[null,null,"Feira"]
[null,null,"Açougue"]
[null,null,"Padaria"]
[null,"Saúde","Farmácia"]
[null,"Cuidados\nPessoais","Manicure"]
[null,null,"Cabelereiro"]
[null,null,"Academia"]
[null,null,"Clube"]
[null,"Animal \nEstimação","Veterinário"]
[null,null,"Banho"]
[null,null,"Tosa"]
[null,null,"Ração"]
[null,"Linhas de Crédito","Juros cheque especial"]
[null,null,"Juros cartão de crédito"]
[null,null,"Empréstimo pessoal"]
["Total Despesas Variáveis",null,null,{"$f":"SUM(D44:D70)","v":0},0,0,0,0,0,0,0,0,0,0,0]
[]
["MESES",null,null,"Janeiro","Fevereiro","Março","Abril","Maio","Junho","Julho","Agosto","Setembro","Outubro","Novembro","Dezembro"]
["DESPESAS\n EXTRAS","Categoria","Itens","Valor","Valor","Valor","Valor","Valor","Valor","Valor","Valor","Valor","Valor","Valor","Valor"]
[null,"Manuteção/Prevenção","Carro"]
[null,null,"Casa"]
[null,"Educação","Material Escolar"]
[null,null,"Uniforme"]
[null,null,"Atividades Escolares"]
[null,"Lazer","Viagens"]
[null,null,"Cinema"]
[null,null,"Restaurantes"]
[null,null,"Livraria"]
[null,null,"Shows"]
[null,null,"Revistas e Jornais"]
[null,"Vestuário","Roupas"]
[null,null,"Calçados"]
[null,null,"Acessórios"]
[null,"Outros","Presentes"]
["Total Despesas Fixas",null,null,{"$f":"SUM(D75:D89)","v":0},0,0,0,0,0,0,0,0,0,0,0]
[]
["MESES",null,null,"Janeiro","Fevereiro","Março","Abril","Maio","Junho","Julho","Agosto","Setembro","Outubro","Novembro","Dezembro"]
["DESPESAS\nVISÃO GERAL",null,"Categoria","Valor","Valor","Valor","Valor","Valor","Valor","Valor","Valor","Valor","Valor","Valor","Valor"]
[null,null,"Investimento",{"$f":"SUM(D19)","v":0},0,0,0,0,0,0,0,0,0,0,0]
[null,null,"Habitação",{"$f":"SUM(D20:D25,D44:D50)","v":0},0,0,0,0,0,0,0,0,0,0,0]
[null,null,"Transporte",{"$f":"SUM(D51:D54,D26:D28)","v":0},0,0,0,0,0,0,0,0,0,0,0]
[null,null,"Saúde",{"$f":"SUM(D29:D32,D59)","v":0},0,0,0,0,0,0,0,0,0,0,0]
[null,null,"Educação",{"$f":"SUM(D33:D36,D77:D79)","v":0},0,0,0,0,0,0,0,0,0,0,0]
[null,null,"Imposto",{"$f":"SUM(D37:D39)","v":0},{"$f":"SUM(E37:E39)","v":0},0,0,0,0,0,0,0,0,0,0]
[null,null,"Alimentação",{"$f":"SUM(D55:D58)","v":0},{"$f":"SUM(E55:E58)","v":0},0,0,0,0,0,0,0,0,0,0]
[null,null,"Cuidados Pessoais",{"$f":"SUM(D60:D63)","v":0},{"$f":"SUM(E60:E63)","v":0},0,0,0,0,0,0,0,0,0,0]
[null,null,"Animal Estimação",{"$f":"SUM(D64:D67)","v":0},{"$f":"SUM(E64:E67)","v":0},0,0,0,0,0,0,0,0,0,0]
[null,null,"Linhas de Crédito",{"$f":"SUM(D68:D70)","v":0},{"$f":"SUM(E68:E70)","v":0},0,0,0,0,0,0,0,0,0,0]
[null,null,"Manutenção/Prevenção",{"$f":"SUM(D75:D76)","v":0},{"$f":"SUM(E75:E76)","v":0},0,0,0,0,0,0,0,0,0,0]
[null,null,"Lazer",{"$f":"SUM(D80:D85)","v":0},{"$f":"SUM(E80:E85)","v":0},0,0,0,0,0,0,0,0,0,0]
[null,null,"Vestuário",{"$f":"SUM(D86:D88)","v":0},{"$f":"SUM(E86:E88)","v":0},0,0,0,0,0,0,0,0,0,0]
[null,null,"Outros",{"$f":"SUM(D89)","v":0},{"$f":"SUM(E89)","v":0},{"$f":"SUM(F89)","v":0},0,0,0,0,0,0,0,0,0]
["Despesas - Visão Geral",null,null,{"$f":"SUM(D94:D107)","v":0},0,0,0,0,0,0,0,0,0,0,0]
[]
["MESES",null,null,"Janeiro","Fevereiro","Março","Abril","Maio","Junho","Julho","Agosto","Setembro","Outubro","Novembro","Dezembro"]
["RECEITAS",null,null,"Valor","Valor","Valor","Valor","Valor","Valor","Valor","Valor","Valor","Valor","Valor","Valor"]
[null,null,"Total de Receitas",{"$f":"SUM(D15)","v":0},0,0,0,0,0,0,0,0,0,0,0]
[]
["DESPESAS",null,"Despesas Valores Fixos",{"$f":"SUM(D40)","v":0},{"$f":"SUM(E40)","v":0},0,0,0,0,0,0,0,0,0,0]
[null,null,"Despesas Valores Variáveis",{"$f":"SUM(D71)","v":0},{"$f":"SUM(E71)","v":0},0,0,0,0,0,0,0,0,0,0]
[null,null,"Despesas Extras",{"$f":"SUM(D90)","v":0},{"$f":"SUM(E90)","v":0},0,{"$f":"SUM(G90)","v":0},0,0,0,0,0,0,0,0]
[null,null,"Total  de Despesas",{"$f":"SUM(D114:D116)","v":0},{"$f":"SUM(E114:E116)","v":0},{"$f":"SUM(F114:F116)","v":0},0,0,0,0,0,0,0,0,0]
[]
["SALDO FINAL",null,null,{"$f":"D112-D117","v":0},{"$f":"E112-E117","v":0},{"$f":"F112-F117","v":0},0,0,0,0,0,0,0,0,0]